fUSD/lending_fUSD_20260207
["ID","MTS","AMOUNT","RATE_DAILY","PERIOD"]
[404692774,1770472241945,-501.79374222,0.00016773,2]
[404692775,1770472241960,-501.17265421,0.00016773,2]
[404692776,1770472241971,-390.0,0.00016794,2]
[404692777,1770472241983,-390.0,0.00016799,2]
[404692778,1770472241995,-1500.0,0.00016816,2]
[404692779,1770472242006,-1846.67999999,0.00016816,2]
[404692780,1770472242018,-724.378,0.00016919,2]
[404692781,1770472242030,-1342.284,0.00016919,2]
[404692782,1770472242041,-2447.0,0.00016919,2]
[404692783,1770472242051,-412.0,0.00016919,2]
[404692784,1770472242062,-451.34,0.00016971,2]
[404692785,1770472242073,-2644.29980782,0.0001698,2]
[404692786,1770472242083,-500.0,0.00016999,2]
[404692787,1770472242093,-333.14371564,0.00016999,2]
[404692788,1770472242106,-500.0,0.00016999,2]
[404692789,1770472242118,-410.20942792,0.00016999,2]
[404692790,1770472242129,-500.0,0.00016999,2]
[404692791,1770472242143,-204.56985635,0.00016999,2]
[404692792,1770472242154,-500.0,0.00016999,2]
[404692793,1770472242166,-232.2,0.00016999,2]
[404692794,1770472242178,-500.0,0.00017,2]
[404692795,1770472242191,-500.0,0.00017,2]
[404692796,1770472242205,-500.0,0.00017,2]
[404692797,1770472242216,-504.68637928,0.00017,5]
[404692798,1770472242229,-578.20924308,0.00017006,2]
[404692799,1770472242242,-174.61919141,0.00017006,2]
[404692800,1770472242254,-209.40437684,0.00017006,2]
[404692801,1770472242266,-322.6107,0.00017006,2]
[404692802,1770472242277,-721.12765535,0.00017006,2]
[404692803,1770472242287,-10243.83909459,0.00017008,2]
[404692804,1770472242302,-17062.09666072,0.00017008,2]
[404692805,1770472242315,-840.0,0.0001704,2]
[404692806,1770472242326,-823.0,0.00017048,2]
[404692807,1770472242338,-736.0,0.00017057,2]
[404692808,1770472242350,-217.15233878,0.00017061,2]
[404692809,1770472242362,-225.18697532,0.00017116,2]
[404692810,1770472242373,-200.0,0.0001715,2]
[404692811,1770472242385,-390.0,0.00017169,2]
[404692812,1770472242396,-233.51889341,0.00017171,2]
[404692813,1770472242407,-217.26,0.00017181,2]
[404692814,1770472242418,-3292.0,0.000172,2]
[404692815,1770472242430,-242.15909246,0.00017226,2]
[404692816,1770472242441,-500.0,0.00017266,2]
[404692817,1770472242454,-251.11897888,0.00017281,2]
[404692818,1770472242470,-743.15006395,0.00017321,2]
[404692819,1770472242486,-260.4103811,0.00017336,2]
[404692820,1770472242498,-163.0,0.0001736,2]
[404692821,1770472242510,-840.0,0.0001736,2]
[404692822,1770472242522,-164.0,0.0001736,2]
[404692823,1770472242533,-270.0455652,0.00017391,2]
[404692824,1770472242545,-390.0,0.00017396,2]
[404692825,1770472242556,-150.82,0.00017404,2]
[404692826,1770472242566,-2644.29980782,0.0001744,2]
[404692827,1770472242576,-280.03725112,0.00017446,2]
[404692828,1770472242586,-10243.83909459,0.00017454,2]
[404692829,1770472242597,-17062.09666072,0.00017454,2]
[404692830,1770472242607,-390.0,0.00017455,2]
[404692831,1770472242619,-390.0,0.00017461,2]
[404692832,1770472242631,-290.39862941,0.00017501,2]
[404692833,1770472242642,-390.0,0.00017505,2]
[404692834,1770472242654,-390.0,0.00017543,2]
[404692835,1770472242665,-181.08010149,0.00017554,2]
[404692836,1770472242678,-301.1433787,0.00017556,2]
[404692837,1770472242687,-1045.58084349,0.0001764,2]
[404692838,1770472242700,-1011.32873607,0.0001764,2]
[404692839,1770472242710,-1056.65529107,0.0001764,2]
[404692840,1770472242720,-1043.36474931,0.0001764,2]
[404692841,1770472242730,-1083.1480975,0.0001764,2]
[404692842,1770472242741,-1052.39152347,0.0001764,2]
[404692843,1770472242752,-1048.61840183,0.0001764,2]
[404692844,1770472242763,-1141.12693269,0.0001764,2]
[404692845,1770472242777,-1082.31126775,0.0001764,2]
[404692846,1770472242787,-1013.28032499,0.0001764,2]
[404692847,1770472242797,-1101.05608989,0.0001764,2]
[404692848,1770472242807,-1129.06693172,0.0001764,2]
[404692849,1770472242817,-1932.85747205,0.0001764,2]
[404692850,1770472242827,-1188.18820231,0.0001764,2]
[404692851,1770472242836,-163.0,0.0001768,2]
[404692852,1770472242848,-163.0,0.0001768,2]
[404692853,1770472242858,-163.0,0.0001768,2]
[404692854,1770472242869,-163.0,0.0001768,2]
[404692855,1770472242879,-163.0,0.0001768,2]
[404692856,1770472242890,-163.0,0.0001768,2]
[404692857,1770472242900,-611.0,0.000177,2]
[404692858,1770472242912,-990.0,0.000177,2]
[404692859,1770472242923,-311.0,0.000177,2]
[404692860,1770472242935,-1500.0,0.000177,2]
[404692861,1770472242949,-1500.0,0.000178,2]
[404692862,1770472242960,-203.91426758,0.00017808,2]
[404692863,1770472242972,-200.0,0.00017808,2]
[404692864,1770472242983,-2000.0,0.0001781,2]
[404692865,1770472242994,-500.0,0.00017814,2]
[404692866,1770472243006,-218.88,0.00017814,2]
[404692867,1770472243018,-390.0,0.00017815,2]
[404692868,1770472243030,-390.0,0.00017817,2]
[404692869,1770472243051,-1261.90557685,0.0001782,10]
[404692870,1770472243065,-160.86009,0.0001782,2]
[404692871,1770472243078,-160.86009,0.0001782,2]
[404692872,1770472243089,-1000.0,0.00017877,2]
[404692873,1770472243102,-151.0,0.00017897,2]
[404692874,1770472243115,-9898.87098964,0.000179,3]
[404692875,1770472243126,-2437.0459,0.000179,2]
[404692876,1770472243140,-169.42023235,0.000179,2]
[404692877,1770472243152,-500.0,0.000179,2]
[404692878,1770472243164,-158.20460182,0.000179,2]
[404692879,1770472243176,-17062.09666072,0.000179,2]
[404692880,1770472243189,-2644.29980782,0.000179,2]
[404692881,1770472243201,-10243.83909459,0.000179,2]
[404692882,1770472243215,-707.02472124,0.000179,3]
[404692883,1770472243231,-15266.75196993,0.000179,2]
[404692884,1770472243242,-485.452304,0.000179,2]
[404692885,1770472243254,-1500.0,0.000179,2]
[404692886,1770472243266,-500.0,0.000179,2]
[404692887,1770472243277,-500.0,0.000179,2]
[404692888,1770472243288,-500.0,0.000179,2]
[404692889,1770472243299,-500.0,0.000179,2]
[404692890,1770472243310,-500.0,0.000179,2]
[404692891,1770472243320,-444.30041557,0.000179,2]
[404692892,1770472243331,-1000.0,0.00017916,2]
[404692893,1770472243342,-390.0,0.00017919,2]
[404692894,1770472243352,-390.0,0.00017927,2]
[404692895,1770472243364,-1123.0,0.00017973,2]
[404692897,1770472243374,-500.0,0.00017973,2]
[404692898,1770472243385,-150.0,0.00017973,2]
[404692899,1770472243396,-5702.4669442,0.00017988,2]
[404692900,1770472243407,-414.9564449,0.00017988,2]
[404692901,1770472243419,-2011.7880721,0.00017988,2]
[404692902,1770472243429,-1201.9893174,0.00017988,2]
[404692903,1770472243440,-7251.9466248,0.0001799,2]
[404692904,1770472243451,-2558.7610301,0.0001799,2]
[404692905,1770472243462,-200.0,0.00017997,2]
[404692906,1770472243473,-151.0,0.00017997,2]
[404692907,1770472243483,-300.0,0.00017999,2]
[404692908,1770472243494,-666.0,0.00017999,2]
[404692909,1770472243504,-1009883.31891691,0.00018,2]
[404692912,1770472243557,-5486.62137138,0.00018,2]
[404692913,1770472243582,-721.53268938,0.00018,2]
[404692914,1770472243598,-48829.746,0.00018,2]
[404692915,1770472243615,-8355.461751,0.00018,2]
[404692916,1770472243630,-31506.73163613,0.00018,2]
[404692917,1770472243649,-825.89185212,0.00018,2]
[404692918,1770472243662,-690.5,0.00018,2]
[404692919,1770472243676,-588.0,0.00018,2]
[404692920,1770472243716,-642943.02877797,0.00018,2]
[404692921,1770472243727,-1031700.04300154,0.00018,2]
[404692922,1770472243738,-128462.03191048,0.00018,2]
[404692923,1770472243760,-254685.51006589,0.00018,2]
[404692924,1770472243774,-50820.83029231,0.00018,2]
[404692925,1770472243787,-290.05089813,0.00018,2]
[404692926,1770472243801,-772.6094221,0.00018,2]
[404692927,1770472243819,-507.04547635,0.00018,2]
[404692944,1770472245621,-866.20038241,0.00018,2]
[404693058,1770473424723,168.12,0.00014645,7]
[404693060,1770473431729,-166.66,0.00012646,2]
[404693061,1770473431739,-525.14086981,0.00012646,2]
[404693062,1770473431854,-462.1300956,0.00012646,2]
[404693063,1770473431865,-128.01903459,0.00012646,2]
[404693064,1770473431873,-150.39718643,0.00012883,2]
[404693065,1770473431881,-166.66,0.00012912,2]
[404693066,1770473431890,-250.0,0.00012979,2]
[404693067,1770473431899,-166.66,0.00013178,2]
[404693068,1770473431908,-213.69377898,0.00013312,2]
[404693069,1770473431919,-86.30622102,0.00013312,2]
[404693070,1770473431929,-300.0,0.00013312,2]
[404693071,1770473431938,-300.0,0.00013312,2]
[404693072,1770473431947,-183.25377898,0.00013312,2]
[404693073,1770473431962,-951.09995283,0.00013312,2]
[404693074,1770473431973,-65.64626819,0.00013312,2]
[404693076,1770473431983,-633.72075987,0.00013313,2]
[404693077,1770473431994,-2491.59768231,0.00013313,2]
[404693080,1770473432005,-2107.28432845,0.00013313,2]
[404693099,1770473437822,-262.56508405,0.00013313,2]
[404693100,1770473437833,-585.35795706,0.00013313,2]
[404693101,1770473437881,-2161.01418826,0.00013313,2]
[404693102,1770473437891,-166.66,0.00013357,2]
[404693103,1770473437901,-1232.94,0.00013381,2]
[404693104,1770473437911,-166.66,0.00013444,2]
[404693105,1770473437921,-7170.68736624,0.000135,2]
[404693106,1770473437931,-150.0,0.00013545,2]
[404693107,1770473437940,-182.11,0.000136,2]
[404693108,1770473437951,-169.42023235,0.00013615,2]
[404693109,1770473437961,-500.0,0.00013647,2]
[404693110,1770473437971,-348.00314474,0.00013647,2]
[404693111,1770473437980,-503.89980627,0.00013679,2]
[404693112,1770473437990,-200.0,0.00013679,2]
[404693113,1770473438000,-500.0,0.00013679,2]
[404693114,1770473438010,-500.0,0.00013679,2]
[404693115,1770473438020,-500.0,0.00013679,2]
[404693116,1770473438030,-500.0,0.00013679,2]
[404693117,1770473438039,-500.0,0.00013679,2]
[404693118,1770473438049,-200.0,0.00013679,2]
[404693119,1770473438058,-151.0,0.00013679,2]
[404693120,1770473438068,-151.0,0.00013679,2]
[404693121,1770473438078,-151.0,0.00013679,2]
[404693122,1770473438087,-151.0,0.00013679,2]
[404693123,1770473438096,-151.0,0.00013679,2]
[404693124,1770473438106,-151.0,0.00013679,2]
[404693125,1770473438116,-151.0,0.00013679,2]
[404693126,1770473438126,-151.0,0.00013679,2]
[404693127,1770473438135,-151.0,0.00013679,2]
[404693128,1770473438145,-275.25443955,0.00013679,2]
[404693129,1770473438155,-500.0,0.00013679,2]
[404693130,1770473438164,-2353.973,0.00013686,2]
[404693131,1770473438174,-183.251,0.00013686,2]
[404693132,1770473438184,-500.0,0.00013687,2]
[404693133,1770473438193,-500.0,0.00013698,2]
[404693134,1770473438203,-178.81113549,0.00013698,2]
[404693135,1770473438212,-322.28885817,0.00013698,2]
[404693137,1770473438222,-500.0,0.00013698,2]
[404693139,1770473438231,-500.0,0.00013698,2]
[404693141,1770473438241,-295.07674716,0.00013698,2]
[404693143,1770473438250,-500.0,0.00013698,2]
[404693145,1770473438259,-500.0,0.00013698,2]
[404693147,1770473438269,-333.14371564,0.00013698,2]
[404693149,1770473438279,-500.0,0.00013698,2]
[404693151,1770473438288,-500.0,0.00013698,2]
[404693153,1770473438297,-410.20942792,0.00013698,2]
[404693155,1770473438307,-192.67143229,0.00013698,2]
[404693157,1770473438316,-500.0,0.00013698,2]
[404693159,1770473438325,-500.0,0.00013698,2]
[404693160,1770473438335,-204.56985635,0.00013698,2]
[404693162,1770473438345,-166.66,0.0001371,2]
[404693164,1770473438354,-33304.9777,0.00013787,2]
[404693167,1770473438364,-1000.0,0.00013787,2]
[404693168,1770473438373,-166.66,0.00013798,2]
[404693171,1770473438383,-500.0,0.00013821,2]
[404693172,1770473438393,-150.0,0.00013821,2]
[404693175,1770473438403,-352.96267049,0.00013876,2]
[404693176,1770473438412,-250.0,0.0001391,2]
[404693179,1770473438422,-250.0,0.0001391,2]
[404693181,1770473438431,-166.66,0.00013977,2]
[404693183,1770473438441,-155.6788568,0.00013984,2]
[404693185,1770473438451,-318.15132123,0.00013984,2]
[404693187,1770473438460,-299.80855233,0.00013984,2]
[404693189,1770473438469,-1019.90071656,0.00013984,2]
[404693191,1770473438478,-1019.90071656,0.00013984,2]
[404693193,1770473438491,-1019.90071656,0.00013984,2]
[404693194,1770473438500,-1019.90071656,0.00013984,2]
[404693196,1770473438510,-1019.90071656,0.00013984,2]
[404693198,1770473438519,-1019.90071656,0.00013984,2]
[404693200,1770473438529,-1019.90071656,0.00013984,2]
[404693202,1770473438539,-1019.90071656,0.00013984,2]
[404693204,1770473438549,-1019.90071656,0.00013984,2]
[404693207,1770473438560,-1019.90071656,0.00013984,2]
[404693209,1770473438570,-1019.90071656,0.00013984,2]
[404693211,1770473438579,-1019.90071656,0.00013984,2]
[404693212,1770473438588,-1019.90071656,0.00013984,2]
[404693214,1770473438597,-1019.90071656,0.00013984,2]
[404693217,1770473438607,-1019.90071656,0.00013984,2]
[404693219,1770473438616,-1019.90071656,0.00013984,2]
[404693221,1770473438625,-500.0,0.00013986,2]
[404693223,1770473438634,-500.0,0.00013986,2]
[404693225,1770473438643,-500.0,0.00013986,2]
[404693227,1770473438651,-232.2,0.00013986,2]
[404693229,1770473438660,-7170.68736621,0.00013989,2]
[404693231,1770473438669,-1115.29,0.00014226,2]
[404693233,1770473438678,-200.0,0.00014227,2]
[404693234,1770473438687,-200.0,0.00014227,2]
[404693236,1770473438697,-500.0,0.00014227,2]
[404693238,1770473438707,-166.66,0.00014239,2]
[404693241,1770473438717,-319.08,0.00014328,2]
[404693243,1770473438726,-7170.68736621,0.00014478,2]
[404693245,1770473438736,-420.0,0.00014595,2]
[404693246,1770473438745,-287.0,0.00014595,2]
[404693249,1770473438756,-150.39718643,0.00014609,2]
[404693251,1770473438766,-1680.0,0.00014644,2]
[404693253,1770473438775,-255.0,0.00014656,2]
[404693255,1770473438785,-237.64,0.00014656,2]
[404693257,1770473438794,-166.66,0.0001468,2]
[404693259,1770473438803,-200.0,0.00014775,2]
[404693260,1770473438813,-200.0,0.00014775,2]
[404693261,1770473438822,-500.0,0.00014775,2]
[404693262,1770473438831,-8187.85,0.00014948,2]
[404693263,1770473438840,-7170.68736621,0.00014967,2]
[404693264,1770473438849,-166.66,0.00015121,2]
[404693265,1770473438858,-278.56890319,0.00015173,2]
[404693266,1770473438867,-349.18395774,0.00015173,2]
[404693267,1770473438876,-500.0,0.00015173,2]
[404693268,1770473438885,-500.0,0.00015173,2]
[404693269,1770473438894,-500.0,0.00015173,2]
[404693270,1770473438902,-500.32773818,0.00015173,2]
[404693271,1770473438911,-500.0,0.00015173,2]
[404693272,1770473438920,-500.0,0.00015173,2]
[404693273,1770473438929,-500.0,0.00015173,2]
[404693274,1770473438938,-500.0,0.00015173,2]
[404693276,1770473438947,-166.51358966,0.00015173,2]
[404693278,1770473438957,-500.0,0.00015173,2]
[404693280,1770473438967,-500.0,0.00015173,2]
[404693282,1770473438976,-500.0,0.00015173,2]
[404693284,1770473438986,-500.0,0.00015173,2]
[404693286,1770473438995,-166.38701888,0.00015173,2]
[404693288,1770473439004,-169.79228934,0.00015173,2]
[404693290,1770473439014,-217.81806779,0.00015173,2]
[404693292,1770473439024,-500.0,0.00015173,2]
[404693294,1770473439033,-363.98392917,0.00015173,2]
[404693296,1770473439043,-500.0,0.00015173,2]
[404693298,1770473439052,-500.0,0.00015173,2]
[404693300,1770473439061,-500.0,0.00015173,2]
[404693302,1770473439071,-500.0,0.00015173,2]
[404693304,1770473439080,-500.0,0.00015173,2]
[404693306,1770473439089,-500.0,0.00015173,2]
[404693308,1770473439098,-500.0,0.00015173,2]
[404693310,1770473439108,-500.89849545,0.00015173,2]
[404693312,1770473439117,-1998.21015449,0.0001521,2]
[404693314,1770473439127,-621.20778463,0.0001531,2]
[404693316,1770473439136,-799.2381371,0.0001531,2]
[404693318,1770473439145,-1272.50606405,0.0001531,2]
[404693320,1770473439154,-499.99,0.0001531,2]
[404693322,1770473439164,-9999.99,0.0001531,2]
[404693324,1770473439173,-999.99,0.0001531,2]
[404693326,1770473439182,-5326.57,0.0001531,2]
[404693328,1770473439192,-9999.99,0.0001531,2]
[404693330,1770473439200,-5908.21,0.0001531,2]
[404693332,1770473439209,-14612.94,0.0001531,2]
[404693334,1770473439218,-9999.99,0.0001531,2]
[404693336,1770473439228,-299.99,0.0001531,2]
[404693338,1770473439236,-14411.87,0.0001531,2]
[404693340,1770473439247,-4999.99,0.0001531,2]
[404693342,1770473439256,-26702.96,0.0001531,2]
[404693344,1770473439266,-438.39,0.0001531,2]
[404693346,1770473439275,-1610.39,0.0001531,2]
[404693348,1770473439284,-1554.0,0.0001531,2]
[404693349,1770473439293,-150.99,0.0001531,2]
[404693351,1770473439302,-22352.3,0.0001531,2]
[404693352,1770473439311,-150.99,0.0001531,2]
[404693354,1770473439321,-9999.99,0.0001531,2]
[404693356,1770473439333,-9251.92,0.0001531,2]
[404693358,1770473439342,-12352.82,0.0001531,2]
[404693360,1770473439351,-500.0,0.00015323,2]
[404693370,1770473439530,-7170.68736621,0.00015456,2]
[404693371,1770473439540,-3353.79,0.00015549,2]
[404693372,1770473439550,-166.66,0.00015561,2]
[404693373,1770473439559,-1998.21015447,0.00015594,2]
[404693374,1770473439571,-500.0,0.00015721,2]
[404693375,1770473439580,-1000.0,0.00015721,2]
[404693376,1770473439590,-1000.0,0.00015721,2]
[404693377,1770473439600,-500.0,0.00015721,2]
[404693378,1770473439609,-946.75686173,0.00015721,2]
[404693379,1770473439619,-1000.0,0.00015721,2]
[404693380,1770473439628,-1000.0,0.00015721,2]
[404693381,1770473439638,-619.67330521,0.00015721,2]
[404693382,1770473439648,-1000.0,0.00015721,2]
[404693383,1770473439657,-1000.0,0.00015721,2]
[404693384,1770473439667,-1000.0,0.00015721,2]
[404693385,1770473439676,-506.10959782,0.00015721,2]
[404693386,1770473439685,-614.60634748,0.00015721,2]
[404693387,1770473439696,-1000.0,0.00015721,2]
[404693388,1770473439707,-305.61116112,0.00015721,2]
[404693389,1770473439719,-169.42023235,0.00015758,2]
[404693390,1770473439728,-1115.29,0.00015807,2]
[404693391,1770473439737,-160.0,0.00015839,2]
[404693392,1770473439746,-433.0,0.00015861,2]
[404693393,1770473439756,-1564.94,0.00015866,2]
[404693394,1770473439765,-500.0,0.00015871,2]
[404693395,1770473439774,-7170.68736621,0.00015944,2]
[404693396,1770473439783,-1998.21015447,0.00015979,2]
[404693397,1770473439793,-587.0,0.00016,2]
[404693398,1770473439803,-150.27588129,0.00016,2]
[404693399,1770473439812,-869.6,0.0001603,2]
[404693400,1770473439822,-2351.0,0.00016108,2]
[404693401,1770473439831,-578.83635773,0.00016267,2]
[404693402,1770473439840,-500.0,0.00016267,2]
[404693403,1770473439850,-278.44758318,0.00016267,2]
[404693404,1770473439859,-547.89302135,0.00016267,2]
[404693405,1770473439868,-500.0,0.00016267,2]
[404693406,1770473439877,-500.0,0.00016267,2]
[404693407,1770473439887,-500.0,0.00016267,2]
[404693408,1770473439896,-500.0,0.00016267,2]
[404693409,1770473439905,-1500.0,0.00016268,2]
[404693410,1770473439915,-1500.0,0.00016268,2]
[404693411,1770473439924,-381.3557452,0.00016268,2]
[404693412,1770473439933,-1500.6861044,0.00016268,2]
[404693413,1770473439942,-184.19856458,0.00016268,2]
[404693414,1770473439951,-1193.87683295,0.00016268,2]
[404693415,1770473439960,-721.01082613,0.00016268,2]
[404693416,1770473439971,-1205.73103869,0.00016268,2]
[404693417,1770473439980,-4860.0303,0.000163,2]
[404693418,1770473439990,-869.6,0.00016304,2]
[404693419,1770473439999,-150.39718643,0.00016336,2]
[404693420,1770473440008,-1998.21015447,0.00016363,2]
[404693421,1770473440018,-163.0,0.000164,2]
[404693422,1770473440029,-164.0,0.000164,2]
[404693423,1770473440039,-500.0,0.00016419,2]
[404693424,1770473440049,-151.0,0.0001643,2]
[404693425,1770473440059,-7170.68736621,0.00016433,2]
[404693426,1770473440068,-800.0,0.00016438,2]
[404693427,1770473440077,-170.6,0.00016575,2]
[404693428,1770473440087,-869.6,0.00016577,2]
[404693429,1770473440096,-3590.0,0.00016666,2]
[404693430,1770473440106,-176.64678228,0.00016706,2]
[404693431,1770473440116,-840.0,0.0001672,2]
[404693432,1770473440126,-163.0,0.0001672,2]
[404693433,1770473440135,-1998.21015447,0.00016747,2]
[404693434,1770473440144,-500.9102189,0.00016773,2]
[404693435,1770473440154,-500.0,0.00016773,2]
[404693436,1770473440164,-500.71876563,0.00016773,2]
[404693437,1770473440174,-501.0806738,0.00016773,2]
[404693438,1770473440183,-501.54780201,0.00016773,2]
[404693439,1770473440193,-500.53646167,0.00016773,2]
[404693440,1770473440202,-500.44572838,0.00016773,2]
[404693441,1770473440214,-500.0,0.00016773,2]
[404693442,1770473440225,-500.0,0.00016773,2]
[404693443,1770473440234,-500.96112568,0.00016773,2]
[404693444,1770473440243,-327.45326444,0.00016773,2]
[404693445,1770473440253,-500.82365782,0.00016773,2]
[404693446,1770473440263,-500.83175848,0.00016773,2]
[404693447,1770473440272,-500.75752829,0.00016773,2]
[404693448,1770473440281,-500.82082584,0.00016773,2]
[404693449,1770473440291,-189.69160583,0.00016773,2]
[404693450,1770473440300,-502.51898619,0.00016773,2]
[404693451,1770473440310,-160.144,0.00016773,2]
[404693452,1770473440319,-501.03785696,0.00016773,2]
[404693453,1770473440329,-160.144,0.00016773,2]
[404693454,1770473440339,-160.144,0.00016773,2]
[404693455,1770473440348,-500.85471823,0.00016773,2]
[404693456,1770473440358,-160.144,0.00016773,2]
[404693457,1770473440368,-502.71573821,0.00016773,2]
[404693458,1770473440377,-500.87567623,0.00016773,2]
[404693459,1770473440386,-501.66346895,0.00016773,2]
[404693460,1770473440395,-501.56384225,0.00016773,2]
[404693461,1770473440404,-160.144,0.00016773,2]
[404693462,1770473440413,-501.34047747,0.00016773,2]
[404693463,1770473440423,-500.0,0.00016773,2]
[404693464,1770473440432,-160.144,0.00016773,2]
[404693465,1770473440442,-511.17251501,0.00016773,2]
[404693466,1770473440451,-555.01216598,0.00016773,2]
[404693467,1770473440460,-160.144,0.00016773,2]
[404693468,1770473440469,-160.0,0.00016773,2]
[404693469,1770473440479,-160.144,0.00016773,2]
[404693471,1770473440490,-160.144,0.00016773,2]
[404693473,1770473440500,-500.75477963,0.00016773,2]
[404693475,1770473440509,-502.0240799,0.00016773,2]
[404693477,1770473440519,-501.17265421,0.00016773,2]
[404693479,1770473440528,-501.62253094,0.00016773,2]
[404693481,1770473440538,-501.16814505,0.00016773,2]
[404693483,1770473440548,-293.09330674,0.00016773,2]
[404693485,1770473440557,-501.23769089,0.00016773,2]
[404693487,1770473440569,-500.6237443,0.00016773,2]
[404693488,1770473440578,-501.79374222,0.00016773,2]
[404693489,1770473440587,-500.54678551,0.00016773,2]
[404693490,1770473440596,-501.03613157,0.00016773,2]
[404693491,1770473440605,-504.97187876,0.00016773,2]
[404693492,1770473440615,-501.58342039,0.00016773,2]
[404693493,1770473440623,-160.16,0.00016773,2]
[404693494,1770473440633,-160.144,0.00016773,2]
[404693495,1770473440642,-500.86071742,0.00016773,2]
[404693496,1770473440652,-501.52124127,0.00016773,2]
[404693497,1770473440661,-1846.67999999,0.00016816,2]
[404693498,1770473440670,-1000.0,0.00016816,2]
[404693499,1770473440680,-869.6,0.00016851,2]
[404693500,1770473440689,-150.0,0.00016919,2]
[404693501,1770473440698,-213.0,0.00016919,2]
[404693502,1770473440707,-150.0,0.00016919,2]
[404693503,1770473440716,-150.233,0.00016919,2]
[404693504,1770473440725,-150.197,0.00016919,2]
[404693505,1770473440735,-150.0,0.00016919,2]
[404693506,1770473440743,-150.125,0.00016919,2]
[404693507,1770473440753,-150.0,0.00016919,2]
[404693508,1770473440762,-150.0,0.00016919,2]
[404693509,1770473440771,-151.0,0.00016919,2]
[404693510,1770473440781,-150.203,0.00016919,2]
[404693511,1770473440790,-1342.284,0.00016919,2]
[404693512,1770473440799,-724.378,0.00016919,2]
[404693513,1770473440808,-2447.0,0.00016919,2]
[404693514,1770473440818,-6584.0,0.00016919,2]
[404693515,1770473440827,-7170.68736621,0.00016922,2]
[404693516,1770473440836,-1000.0,0.00016946,2]
[404693517,1770473440845,-500.0,0.00016967,2]
[404693518,1770473440854,-1000.0,0.00016996,2]
[404693519,1770473440863,-500.0,0.00017,2]
[404693520,1770473440872,-163.0,0.0001704,2]
[404693521,1770473440882,-578.20924308,0.00017099,2]
[404693522,1770473440891,-721.12765535,0.00017099,2]
[404693523,1770473440900,-174.61919141,0.00017099,2]
[404693524,1770473440909,-209.40437684,0.00017099,2]
[404693525,1770473440918,-322.6107,0.00017099,2]
[404693526,1770473440927,-451.34,0.00017125,2]
[404693527,1770473440937,-487.0,0.00017125,2]
[404693528,1770473440945,-487.0,0.00017125,2]
[404693529,1770473440955,-487.0,0.00017125,2]
[404693530,1770473440963,-487.0,0.00017125,2]
[404693531,1770473440973,-487.0,0.00017125,2]
[404693533,1770473440981,-487.0,0.00017125,2]
[404693534,1770473440990,-487.0,0.00017125,2]
[404693535,1770473440999,-487.0,0.00017125,2]
[404693536,1770473441008,-487.0,0.00017125,2]
[404693537,1770473441015,-704.91,0.00017125,2]
[404693538,1770473441023,-1998.21015447,0.00017131,2]
[404693539,1770473441032,-217.15233878,0.00017154,2]
[404693540,1770473441042,-736.0,0.00017162,2]
[404693541,1770473441052,-14698.89,0.00017186,2]
[404693542,1770473441061,-225.18697532,0.00017209,2]
[404693543,1770473441071,-233.51889341,0.00017264,2]
[404693544,1770473441082,-242.15909246,0.00017319,2]
[404693545,1770473441091,-743.15006395,0.00017321,2]
[404693546,1770473441101,-163.0,0.0001736,2]
[404693547,1770473441111,-163.0,0.0001736,2]
[404693548,1770473441121,-163.0,0.0001736,2]
[404693549,1770473441131,-251.11897888,0.00017374,2]
[404693550,1770473441140,-1115.29,0.00017388,2]